[Event "FIDE Grand Swiss 2023"]
[Site "Villa Marina, Douglas, Isle of Man"]
[Date "2023.11.01"]
[Round "7.19"]
[White "Shankland, Sam"]
[Black "Yilmaz, Mustafa"]
[Result "1/2-1/2"]
[WhiteElo "2698"]
[BlackElo "2640"]
[EventDate "2023.10.25"]
[ECO "C68"]
[PlyCount "103"]
[BlackClock "00:08:31"]
[BlackFideId "6302718"]
[TimeControl "40/100 + 20/50 + 15 + 30s/move"]
[WhiteClock "00:45:14"]
[WhiteFideId "2004887"]

1.e4 {[%clk 01:40:50][%emt 00:00:10]} 1...e5 {[%clk 01:40:40][%emt 00:00:20]} 
2.Nf3 {[%clk 01:41:14][%emt 00:00:06]} 2...Nc6 {[%clk 01:41:05][%emt 00:00:05]} 
3.Bb5 {[%clk 01:41:38][%emt 00:00:06]} 3...a6 {[%clk 01:41:21][%emt 00:00:15]} 
4.Bxc6 {[%clk 01:42:03][%emt 00:00:05]} 4...dxc6 {[%clk 01:41:46][%emt
00:00:05]} 5.O-O {[%clk 01:42:30][%emt 00:00:03]} 5...Bg4 {[%clk 01:40:43][%emt
00:01:32]} 6.h3 {[%clk 01:42:55][%emt 00:00:05]} 6...h5 {[%clk 01:41:02][%emt
00:00:12]} 7.d3 {[%clk 01:43:20][%emt 00:00:05]} 7...Qf6 {[%clk 01:40:46][%emt
00:00:46]} 8.Nbd2 {[%clk 01:43:44][%emt 00:00:05]} 8...g5 {[%clk 01:39:39][%emt
00:01:37]} 9.Nc4 {[%clk 01:42:49][%emt 00:01:25]} 9...Bxf3 {[%clk 01:38:20][%emt
00:01:49]} 10.Qxf3 {[%clk 01:43:14][%emt 00:00:05]} 10...Qxf3 {[%clk
01:38:46][%emt 00:00:04]} 11.gxf3 {[%clk 01:43:40][%emt 00:00:04]} 11...f6 
{[%clk 01:39:12][%emt 00:00:05]} 12.h4 {[%clk 01:44:03][%emt 00:00:06]} 
12...gxh4 {[%clk 01:39:39][%emt 00:00:02]} 13.Kh2 {[%clk 01:44:18][%emt
00:00:15]} 13...Bd6 {[%clk 01:30:58][%emt 00:09:12]} 14.f4 {[%clk 01:38:11][%emt
00:06:37]} 14...exf4 {[%clk 01:22:14][%emt 00:09:13]} 15.Nxd6+ {[%clk
01:38:09][%emt 00:00:32]} 15...cxd6 {[%clk 01:22:43][%emt 00:00:02]} 16.Bxf4 
{[%clk 01:38:30][%emt 00:00:08]} 16...Rd8 {[%clk 01:12:32][%emt 00:10:41]} 
17.Rg1 {[%clk 01:17:34][%emt 00:21:25]} 17...Kf7 {[%clk 01:11:39][%emt
00:01:24]} 18.Rg2 {[%clk 01:17:52][%emt 00:00:12]} 18...Ne7 {[%clk
01:11:05][%emt 00:01:04]} 19.Rag1 {[%clk 01:17:52][%emt 00:00:30]} 19...Rhg8 
{[%clk 01:10:18][%emt 00:01:17]} 20.Rxg8 {[%clk 01:18:12][%emt 00:00:10]} 
20...Nxg8 {[%clk 01:10:21][%emt 00:00:27]} 21.Kh3 {[%clk 01:14:00][%emt
00:04:42]} 21...Ne7 {[%clk 01:10:41][%emt 00:00:11]} 22.Bh2 {[%clk
01:12:39][%emt 00:01:50]} 22...d5 {[%clk 00:58:53][%emt 00:12:18]} 23.f3 {[%clk
01:12:41][%emt 00:00:28]} 23...c5 {[%clk 00:51:22][%emt 00:08:02]} 24.Rg2 
{[%clk 00:53:31][%emt 00:19:40]} 24...c4 {[%clk 00:41:19][%emt 00:10:32]} 
25.dxc4 {[%clk 00:47:54][%emt 00:06:07]} 25...dxe4 {[%clk 00:39:16][%emt
00:02:33]} 26.fxe4 {[%clk 00:48:21][%emt 00:00:03]} 26...Rd4 {[%clk
00:39:36][%emt 00:00:10]} 27.e5 {[%clk 00:47:56][%emt 00:00:56]} 27...fxe5 
{[%clk 00:34:36][%emt 00:05:29]} 28.Bxe5 {[%clk 00:48:00][%emt 00:00:26]} 
28...Rxc4 {[%clk 00:34:43][%emt 00:00:24]} 29.Re2 {[%clk 00:43:34][%emt
00:04:55]} 29...Ng6 {[%clk 00:28:05] [%emt 00:07:07]} 30.Rf2+ {[%clk 00:42:24]
[%emt 00:01:40]} 30...Ke7 {[%clk 00:25:41] [%emt 00:02:55]} 31.Re2 {[%clk
00:39:56] [%emt 00:02:59]} 31...Kf7 {[%clk 00:28:05][%emt 00:07:07]} 32.Rf2+ 
{[%clk 00:42:24][%emt 00:01:40]} 32...Ke7 {[%clk 00:25:41][%emt 00:02:55]} 
33.Re2 {[%clk 00:39:56][%emt 00:02:59]} 33...Rc6 {[%clk 00:16:29][%emt
00:00:10]} 34.Bf4+ {[%clk 00:33:34][%emt 00:03:15]} 34...Kf6 {[%clk
00:11:51][%emt 00:05:08]} 35.Bh2 {[%clk 00:33:10][%emt 00:00:54]} 35...b5 
{[%clk 00:09:34][%emt 00:02:47]} 36.a3 {[%clk 00:31:30][%emt 00:02:11]} 
36...Rc4 {[%clk 00:08:54][%emt 00:01:08]} 37.Rd2 {[%clk 00:31:24][%emt
00:00:37]} 37...Re4 {[%clk 00:08:34][%emt 00:00:49]} 38.Rd6+ {[%clk 00:30:23]
[%emt 00:01:32]} 38...Re6 {[%clk 00:07:56] [%emt 00:01:08]} 39.Rd3 {[%clk
00:29:57] [%emt 00:00:55]} 39...Re4 {[%clk 00:04:14][%emt 00:04:13]} 40.Rd6+ 
{[%clk 00:30:23][%emt 00:01:32]} 40...Re6 {[%clk 00:07:56][%emt 00:01:08]} 
41.Rd3 {[%clk 00:29:57][%emt 00:00:55]} 41...Kg5 {[%clk 00:41:05][%emt
00:11:30]} 42.Rd5+ {[%clk 01:06:24][%emt 00:08:07]} 42...Kh6 {[%clk
00:40:49][%emt 00:00:45]} 43.Rd3 {[%clk 01:06:50][%emt 00:00:04]} 43...Rc6 
{[%clk 00:35:13][%emt 00:06:05]} 44.Rd2 {[%clk 01:04:40][%emt 00:02:42]} 
44...Rc4 {[%clk 00:34:05][%emt 00:01:37]} 45.c3 {[%clk 01:02:23][%emt 00:02:47]} 
45...Rc6 {[%clk 00:31:26][%emt 00:03:09]} 46.Bd6 {[%clk 00:54:32][%emt
00:08:21]} 46...Kg5 {[%clk 00:24:26][%emt 00:07:29]} 47.Rd5+ {[%clk
00:52:45][%emt 00:02:19]} 47...Kf6 {[%clk 00:24:34][%emt 00:00:21]} 48.Rd3 
{[%clk 00:52:02] [%emt 00:01:12]} 48...Ke6 {[%clk 00:19:46][%emt 00:05:19]} 
49.Bh2 {[%clk 00:52:26][%emt 00:00:06]} 49...Kf6 {[%clk 00:17:27][%emt
00:02:49]} 50.Bd6 {[%clk 00:49:16] [%emt 00:03:41]} 50...Kf5 {[%clk
00:15:23][%emt 00:02:33]} 51.Rd4 {[%clk 00:47:24][%emt 00:02:22]} 51...Kf6 
{[%clk 00:08:31][%emt 00:07:22]} 52.Rd3 {[%clk 00:52:02][%emt 00:01:12]} 1/2-1/2

[Event "FIDE Grand Swiss 2023"]
[Site "Villa Marina, Douglas, Isle of Man"]
[Date "2023.11.01"]
[Round "7.20"]
[White "Svane, Frederik"]
[Black "Nihal, Sarin"]
[Result "1/2-1/2"]
[WhiteElo "2626"]
[BlackElo "2694"]
[EventDate "2023.10.25"]
[ECO "B30"]
[PlyCount "61"]
[BlackClock "00:24:24"]
[BlackFideId "25092340"]
[TimeControl "40/100 + 20/50 + 15 + 30s/move"]
[WhiteClock "00:13:57"]
[WhiteFideId "12923044"]

1.e4 {[%clk 01:40:56][%emt 00:00:03]} 1...c5 {[%clk 01:40:21][%emt 00:00:40]} 
2.Nf3 {[%clk 01:41:06][%emt 00:00:19]} 2...Nc6 {[%clk 01:40:45][%emt 00:00:06]} 
3.Bb5 {[%clk 01:41:32][%emt 00:00:05]} 3...d5 {[%clk 01:41:10][%emt 00:00:04]} 
4.Nc3 {[%clk 01:27:13][%emt 00:14:49]} 4...dxe4 {[%clk 01:40:55][%emt 00:00:45]} 
5.Nxe4 {[%clk 01:25:25][%emt 00:02:18]} 5...Nf6 {[%clk 01:41:16][%emt 00:00:08]} 
6.Qe2 {[%clk 01:13:08][%emt 00:12:48]} 6...Nxe4 {[%clk 01:40:53][%emt 00:00:51]} 
7.Bxc6+ {[%clk 01:10:52][%emt 00:02:48]} 7...bxc6 {[%clk 01:41:15][%emt
00:00:08]} 8.Qxe4 {[%clk 01:11:18][%emt 00:00:04]} 8...Qd5 {[%clk 01:41:38][%emt
00:00:06]} 9.d3 {[%clk 01:11:15][%emt 00:00:33]} 9...Qxe4+ {[%clk 01:41:23][%emt
00:00:45]} 10.dxe4 {[%clk 01:11:41][%emt 00:00:05]} 10...f6 {[%clk
01:41:47][%emt 00:00:06]} 11.c4 {[%clk 01:05:56][%emt 00:06:15]} 11...e5 {[%clk
01:36:28][%emt 00:05:49]} 12.Kd2 {[%clk 01:02:35][%emt 00:03:52]} 12...a5 
{[%clk 01:22:53][%emt 00:14:04]} 13.Kc3 {[%clk 00:54:06][%emt 00:08:59]} 
13...a4 {[%clk 00:57:35][%emt 00:25:49]} 14.Be3 {[%clk 00:54:07][%emt 00:00:28]} 
14...Be6 {[%clk 00:53:41][%emt 00:04:24]} 15.Ne1 {[%clk 00:53:43][%emt
00:00:54]} 15...Kf7 {[%clk 00:52:02][%emt 00:02:09]} 16.Nd3 {[%clk
00:53:16][%emt 00:00:57]} 16...Ra5 {[%clk 00:51:59][%emt 00:00:33]} 17.b3 
{[%clk 00:41:18][%emt 00:12:28]} 17...Be7 {[%clk 00:37:43][%emt 00:14:46]} 
18.Nb2 {[%clk 00:41:43][%emt 00:00:05]} 18...Rha8 {[%clk 00:38:10][%emt
00:00:03]} 19.Rab1 {[%clk 00:27:19][%emt 00:14:54]} 19...axb3 {[%clk
00:36:15][%emt 00:02:25]} 20.axb3 {[%clk 00:27:44][%emt 00:00:06]} 20...Ra3 
{[%clk 00:33:21][%emt 00:03:23]} 21.Nd3 {[%clk 00:23:44][%emt 00:04:30]} 
21...R3a5 {[%clk 00:32:54][%emt 00:00:58]} 22.f3 {[%clk 00:23:11][%emt
00:01:03]} 22...h5 {[%clk 00:32:15][%emt 00:01:07]} 23.h4 {[%clk 00:22:44] [%emt
00:00:58]} 23...Bd6 {[%clk 00:27:33] [%emt 00:05:12]} 24.Rhd1 {[%clk 00:22:01]
[%emt 00:01:13]} 24...Be7 {[%clk 00:27:58] [%emt 00:00:05]} 25.Rh1 {[%clk
00:22:44][%emt 00:00:58]} 25...Bd6 {[%clk 00:27:33][%emt 00:05:12]} 26.Rhd1 
{[%clk 00:22:44][%emt 00:01:13]} 26...Be7 {[%clk 00:28:49][%emt 00:00:04]} 
27.Bf2 {[%clk 00:19:45] [%emt 00:03:29]} 27...Ke8 {[%clk 00:27:13] [%emt
00:02:06]} 28.Ne1 {[%clk 00:17:40] [%emt 00:02:35]} 28...Kf7 {[%clk 00:23:51]
[%emt 00:03:51]} 29.Nd3 {[%clk 00:15:33] [%emt 00:02:37]} 29...Ke8 {[%clk
00:27:13][%emt 00:02:06]} 30.Ne1 {[%clk 00:17:40][%emt 00:02:35]} 30...Kf7 
{[%clk 00:23:51][%emt 00:03:51]} 31.Nd3 {[%clk 00:19:45][%emt 00:03:29]} 1/2-1/2

[Event "FIDE Grand Swiss 2023"]
[Site "Villa Marina, Douglas, Isle of Man"]
[Date "2023.11.01"]
[Round "7.21"]
[White "Niemann, Hans Moke"]
[Black "Rodrigue-Lemieux, Shawn"]
[Result "1-0"]
[WhiteElo "2667"]
[BlackElo "2488"]
[EventDate "2023.10.25"]
[ECO "B12"]
[PlyCount "113"]
[BlackClock "00:00:54"]
[BlackFideId "2620049"]
[TimeControl "40/100 + 20/50 + 15 + 30s/move"]
[WhiteClock "00:11:10"]
[WhiteFideId "2093596"]

1.e4 {[%clk 01:40:49][%emt 00:00:09]} 1...c6 {[%clk 01:40:54][%emt 00:00:08]} 
2.d4 {[%clk 01:41:09][%emt 00:00:10]} 2...d5 {[%clk 01:41:18][%emt 00:00:06]} 
3.e5 {[%clk 01:41:33][%emt 00:00:06]} 3...Bf5 {[%clk 01:41:39][%emt 00:00:08]} 
4.Nf3 {[%clk 01:41:55][%emt 00:00:07]} 4...e6 {[%clk 01:42:02][%emt 00:00:07]} 
5.Be2 {[%clk 01:42:19][%emt 00:00:05]} 5...c5 {[%clk 01:41:19][%emt 00:01:14]} 
6.O-O {[%clk 01:42:08][%emt 00:00:40]} 6...Nc6 {[%clk 01:39:50][%emt 00:02:00]} 
7.c3 {[%clk 01:41:34][%emt 00:01:05]} 7...cxd4 {[%clk 01:38:57][%emt 00:01:23]} 
8.cxd4 {[%clk 01:41:13][%emt 00:00:50]} 8...Nge7 {[%clk 01:39:06][%emt
00:00:21]} 9.h3 {[%clk 01:35:23][%emt 00:06:20]} 9...Be4 {[%clk 01:33:24][%emt
00:06:12]} 10.Nbd2 {[%clk 01:29:18][%emt 00:06:35]} 10...Nf5 {[%clk
01:31:22][%emt 00:02:32]} 11.Bb5 {[%clk 01:08:55][%emt 00:20:53]} 11...Qb6 
{[%clk 01:29:27][%emt 00:02:26]} 12.Qa4 {[%clk 01:09:07][%emt 00:00:17]} 
12...Bc2 {[%clk 01:07:24][%emt 00:22:33]} 13.b3 {[%clk 01:08:31][%emt 00:01:05]} 
13...a6 {[%clk 01:04:58][%emt 00:02:57]} 14.Bxc6+ {[%clk 01:08:51][%emt
00:00:11]} 14...bxc6 {[%clk 01:04:57][%emt 00:00:31]} 15.Ba3 {[%clk
01:08:46][%emt 00:00:34]} 15...Qb5 {[%clk 00:48:48][%emt 00:16:39]} 16.Qxb5 
{[%clk 01:06:47][%emt 00:02:29]} 16...cxb5 {[%clk 00:49:09][%emt 00:00:08]} 
17.Bxf8 {[%clk 01:04:12][%emt 00:03:06]} 17...Rxf8 {[%clk 00:49:37][%emt
00:00:02]} 18.Rfc1 {[%clk 01:04:35][%emt 00:00:06]} 18...Be4 {[%clk
00:39:02][%emt 00:11:05]} 19.Rc7 {[%clk 01:01:43][%emt 00:03:21]} 19...f6 
{[%clk 00:35:17][%emt 00:04:17]} 20.Rac1 {[%clk 00:59:22][%emt 00:02:49]} 
20...Ne7 {[%clk 00:29:50][%emt 00:05:59]} 21.Rb7 {[%clk 00:57:00][%emt
00:02:50]} 21...Kf7 {[%clk 00:26:02][%emt 00:04:19]} 22.Rcc7 {[%clk
00:54:14][%emt 00:03:15]} 22...Rfe8 {[%clk 00:26:30][%emt 00:00:03]} 23.b4 
{[%clk 00:40:11][%emt 00:14:34]} 23...Bxf3 {[%clk 00:20:54][%emt 00:06:06]} 
24.Nxf3 {[%clk 00:40:30][%emt 00:00:10]} 24...Rac8 {[%clk 00:21:10][%emt
00:00:14]} 25.Rc5 {[%clk 00:38:20][%emt 00:02:39]} 25...Rb8 {[%clk
00:18:17][%emt 00:03:24]} 26.Rd7 {[%clk 00:29:14][%emt 00:09:35]} 26...Red8 
{[%clk 00:17:03][%emt 00:01:45]} 27.Ra7 {[%clk 00:26:29][%emt 00:03:15]} 
27...Ra8 {[%clk 00:17:32][%emt 00:00:02]} 28.Rcc7 {[%clk 00:26:13][%emt
00:00:45]} 28...Rxa7 {[%clk 00:17:56][%emt 00:00:07]} 29.Rxa7 {[%clk
00:26:38][%emt 00:00:05]} 29...Rc8 {[%clk 00:18:07][%emt 00:00:19]} 30.Rxa6 
{[%clk 00:22:51][%emt 00:04:17]} 30...Rc1+ {[%clk 00:18:31][%emt 00:00:06]} 
31.Kh2 {[%clk 00:23:16][%emt 00:00:03]} 31...Rc2 {[%clk 00:17:50][%emt
00:01:13]} 32.Ra5 {[%clk 00:22:41][%emt 00:01:03]} 32...Rxf2 {[%clk
00:17:35][%emt 00:00:46]} 33.Rxb5 {[%clk 00:23:04][%emt 00:00:06]} 33...Rxa2 
{[%clk 00:17:59][%emt 00:00:07]} 34.Rb7 {[%clk 00:23:31][%emt 00:00:03]} 
34...Kf8 {[%clk 00:16:29][%emt 00:02:00]} 35.b5 {[%clk 00:23:37][%emt 00:00:24]} 
35...Nf5 {[%clk 00:15:01][%emt 00:01:58]} 36.b6 {[%clk 00:20:18][%emt 00:03:50]} 
36...Rb2 {[%clk 00:15:04][%emt 00:00:26]} 37.Kg1 {[%clk 00:17:00][%emt
00:03:48]} 37...Ne3 {[%clk 00:14:11][%emt 00:01:23]} 38.Rb8+ {[%clk
00:11:41][%emt 00:05:50]} 38...Kf7 {[%clk 00:13:08][%emt 00:01:33]} 39.b7 
{[%clk 00:11:59][%emt 00:00:12]} 39...Nf5 {[%clk 00:11:26][%emt 00:02:12]} 
40.g4 {[%clk 00:07:31][%emt 00:04:56]} 40...Ne7 {[%clk 00:11:07][%emt 00:00:50]} 
41.exf6 {[%clk 00:06:47][%emt 00:01:14]} 41...gxf6 {[%clk 00:11:19][%emt
00:00:18]} 42.g5 {[%clk 00:07:03][%emt 00:00:14]} 42...Ng6 {[%clk 00:45:00][%emt
00:16:49]} 43.h4 {[%clk 00:50:19][%emt 00:07:15]} 43...fxg5 {[%clk
00:41:17][%emt 00:04:12]} 44.Nxg5+ {[%clk 00:09:14][%emt 00:41:35]} 44...Kf6 
{[%clk 00:22:30][%emt 00:19:17]} 45.Nxh7+ {[%clk 00:09:36][%emt 00:00:06]} 
45...Kg7 {[%clk 00:22:00][%emt 00:01:02]} 46.Ng5 {[%clk 00:09:56][%emt
00:00:10]} 46...Nf8 {[%clk 00:17:55][%emt 00:04:35]} 47.h5 {[%clk 00:10:16][%emt
00:00:10]} 47...Nd7 {[%clk 00:15:17][%emt 00:03:08]} 48.Nxe6+ {[%clk
00:10:41][%emt 00:00:05]} 48...Kf6 {[%clk 00:12:08][%emt 00:03:39]} 49.Rg8 
{[%clk 00:08:47][%emt 00:02:25]} 49...Rxb7 {[%clk 00:03:49][%emt 00:08:49]} 
50.h6 {[%clk 00:08:50][%emt 00:00:27]} 50...Ne5 {[%clk 00:03:17][%emt 00:01:02]} 
51.Ng5 {[%clk 00:09:05][%emt 00:00:11]} 51...Rb1+ {[%clk 00:00:51][%emt
00:03:00]} 52.Kg2 {[%clk 00:09:31][%emt 00:00:04]} 52...Rb2+ {[%clk
00:00:48][%emt 00:00:33]} 53.Kg3 {[%clk 00:09:44][%emt 00:00:15]} 53...Rb3+ 
{[%clk 00:00:51][%emt 00:00:29]} 54.Kh4 {[%clk 00:10:04][%emt 00:00:09]} 
54...Ng6+ {[%clk 00:00:43][%emt 00:00:39]} 55.Kh5 {[%clk 00:10:29][%emt
00:00:04]} 55...Nf4+ {[%clk 00:01:04][%emt 00:00:11]} 56.Kg4 {[%clk
00:10:53][%emt 00:00:04]} 56...Ng6 {[%clk 00:01:04][%emt 00:00:30]} 57.Nh7+ 
{[%clk 00:11:10] [%emt 00:00:13]} 1-0

[Event "FIDE Grand Swiss 2023"]
[Site "Villa Marina, Douglas, Isle of Man"]
[Date "2023.11.01"]
[Round "7.22"]
[White "Cheparinov, Ivan"]
[Black "Tari, Aryan"]
[Result "1-0"]
[WhiteElo "2658"]
[BlackElo "2619"]
[EventDate "2023.10.25"]
[ECO "A37"]
[PlyCount "93"]
[BlackClock "00:43:48"]
[BlackFideId "1510045"]
[TimeControl "40/100 + 20/50 + 15 + 30s/move"]
[WhiteClock "00:57:49"]
[WhiteFideId "2905540"]

1.c4 {[%clk 01:40:56][%emt 00:00:03]} 1...c5 {[%clk 01:40:53][%emt 00:00:07]} 
2.g3 {[%clk 01:41:15][%emt 00:00:10]} 2...g6 {[%clk 01:41:16][%emt 00:00:08]} 
3.Bg2 {[%clk 01:41:40][%emt 00:00:05]} 3...Bg7 {[%clk 01:41:42][%emt 00:00:04]} 
4.Nc3 {[%clk 01:42:01][%emt 00:00:09]} 4...Nc6 {[%clk 01:42:06][%emt 00:00:07]} 
5.Nf3 {[%clk 01:42:13][%emt 00:00:17]} 5...e6 {[%clk 01:42:13][%emt 00:00:24]} 
6.h4 {[%clk 01:42:20][%emt 00:00:22]} 6...h6 {[%clk 01:40:01][%emt 00:02:43]} 
7.O-O {[%clk 01:39:32][%emt 00:03:17]} 7...Nge7 {[%clk 01:38:39][%emt 00:01:52]} 
8.e3 {[%clk 01:38:22][%emt 00:01:40]} 8...d5 {[%clk 01:35:11][%emt 00:03:58]} 
9.cxd5 {[%clk 01:36:28][%emt 00:02:24]} 9...exd5 {[%clk 01:28:03][%emt
00:07:38]} 10.d4 {[%clk 01:36:49][%emt 00:00:09]} 10...cxd4 {[%clk
01:27:52][%emt 00:00:42]} 11.Nxd4 {[%clk 01:35:00][%emt 00:02:18]} 11...Nxd4 
{[%clk 01:19:47][%emt 00:08:35]} 12.exd4 {[%clk 01:35:28][%emt 00:00:03]} 
12...O-O {[%clk 01:20:08][%emt 00:00:09]} 13.Bf4 {[%clk 01:22:31][%emt
00:13:26]} 13...Be6 {[%clk 01:08:26][%emt 00:12:11]} 14.Qd2 {[%clk
01:21:00][%emt 00:02:02]} 14...Nf5 {[%clk 00:58:23][%emt 00:10:34]} 15.Be5 
{[%clk 01:16:40][%emt 00:04:49]} 15...Rc8 {[%clk 00:49:48][%emt 00:09:06]} 
16.Rfe1 {[%clk 01:14:55][%emt 00:02:15]} 16...Re8 {[%clk 00:44:27][%emt
00:05:51]} 17.Rad1 {[%clk 01:09:39][%emt 00:05:46]} 17...Bf8 {[%clk
00:42:49][%emt 00:02:08]} 18.h5 {[%clk 01:02:10][%emt 00:07:58]} 18...g5 {[%clk
00:41:45][%emt 00:01:34]} 19.Qd3 {[%clk 01:01:45][%emt 00:00:55]} 19...Ng7 
{[%clk 00:35:34][%emt 00:06:42]} 20.Qb5 {[%clk 00:49:41][%emt 00:12:33]} 
20...Rxc3 {[%clk 00:21:06][%emt 00:14:58]} 21.bxc3 {[%clk 00:48:39][%emt
00:01:32]} 21...f6 {[%clk 00:21:35][%emt 00:00:01]} 22.Bxf6 {[%clk
00:44:53][%emt 00:04:15]} 22...Qxf6 {[%clk 00:22:04][%emt 00:00:02]} 23.Rxe6 
{[%clk 00:41:57][%emt 00:03:27]} 23...Rxe6 {[%clk 00:22:09][%emt 00:00:25]} 
24.Bxd5 {[%clk 00:42:23][%emt 00:00:03]} 24...Kh8 {[%clk 00:16:27][%emt
00:06:13]} 25.Bxe6 {[%clk 00:42:05][%emt 00:00:47]} 25...Qxe6 {[%clk
00:16:45][%emt 00:00:12]} 26.Qxb7 {[%clk 00:39:51][%emt 00:02:44]} 26...Nxh5 
{[%clk 00:16:55][%emt 00:00:20]} 27.Qf3 {[%clk 00:29:08][%emt 00:11:12]} 
27...Nf6 {[%clk 00:17:21][%emt 00:00:05]} 28.Rb1 {[%clk 00:28:54][%emt
00:00:45]} 28...g4 {[%clk 00:16:09][%emt 00:01:42]} 29.Qf4 {[%clk 00:22:55][%emt
00:06:29]} 29...Kg7 {[%clk 00:14:40][%emt 00:01:59]} 30.Rb7+ {[%clk
00:21:02][%emt 00:02:23]} 30...Kg6 {[%clk 00:14:57][%emt 00:00:13]} 31.Rxa7 
{[%clk 00:20:34][%emt 00:00:58]} 31...Bd6 {[%clk 00:12:13][%emt 00:03:14]} 
32.Qd2 {[%clk 00:19:42][%emt 00:01:21]} 32...Qe4 {[%clk 00:07:12][%emt
00:05:31]} 33.Ra6 {[%clk 00:18:28][%emt 00:01:44]} 33...Bc7 {[%clk
00:07:08][%emt 00:00:34]} 34.d5 {[%clk 00:15:57][%emt 00:03:01]} 34...Be5 
{[%clk 00:04:42][%emt 00:02:56]} 35.d6 {[%clk 00:12:29][%emt 00:03:57]} 
35...Nd7 {[%clk 00:04:40][%emt 00:00:33]} 36.Ra7 {[%clk 00:12:23][%emt
00:00:36]} 36...Qb1+ {[%clk 00:05:02][%emt 00:00:08]} 37.Kh2 {[%clk
00:11:36][%emt 00:01:17]} 37...Qf5 {[%clk 00:04:57][%emt 00:00:36]} 38.Qe3 
{[%clk 00:09:06][%emt 00:02:59]} 38...Nf6 {[%clk 00:03:14][%emt 00:02:13]} 
39.d7 {[%clk 00:05:38][%emt 00:03:58]} 39...Nxd7 {[%clk 00:01:10][%emt
00:02:34]} 40.Rxd7 {[%clk 00:06:06][%emt 00:00:02]} 40...Bxg3+ {[%clk
00:00:33][%emt 00:01:07]} 41.Kxg3 {[%clk 00:06:13][%emt 00:00:23]} 41...Qxd7 
{[%clk 00:00:57][%emt 00:00:06]} 42.Qe4+ {[%clk 00:06:14][%emt 00:00:28]} 
42...Kh5 {[%clk 00:46:53][%emt 00:04:35]} 43.f3 {[%clk 00:56:01][%emt 00:00:43]} 
43...gxf3 {[%clk 00:43:43][%emt 00:03:40]} 44.Qxf3+ {[%clk 00:56:27][%emt
00:00:04]} 44...Kg5 {[%clk 00:44:04][%emt 00:00:10]} 45.Qf4+ {[%clk
00:56:54][%emt 00:00:03]} 45...Kh5 {[%clk 00:44:27][%emt 00:00:06]} 46.Qh4+ 
{[%clk 00:57:21][%emt 00:00:03]} 46...Kg6 {[%clk 00:44:51][%emt 00:00:06]} 
47.Qg4+ {[%clk 00:57:49][%emt 00:00:02]} 1-0